Cogmind - Beta 13 @@@ ROGUE MODE // 2024.07.31 @ 13:56:03 Player: CONM Result: Destroyed by JP-YUF(R) with Subdweller Beam Cannon Performance ------------- Evolutions (0) 0 Regions Visited (2) 400 Robots Destroyed (8) 40 Value Destroyed (135) 135 Prototype IDs (0) 0 Alien Tech Used (0) 0 Bonus (0) 0 TOTAL SCORE: 575 Bonus ------- None Cogmind --------- Core Integrity 0/250 Matter 285/300 Energy 112/200 System Corruption 0% Temperature Cool (18) Movement Rolling (80) Location -10/Subcaves Parts ------- > --- POWER (1) -------- Subdweller Power Source > --- PROPULSION (2) --- Wheel > --- UTILITY (2) ------ (None) > --- WEAPON (2) ------- (None) > --- INVENTORY (5) ---- Ion Engine Light Treads Small Storage Unit Sensor Array Seismic Detector Peak State ------------ > --- POWER ------------ Ion Engine > --- PROPULSION ------- Wheel Wheel > --- UTILITY ---------- Scrap Shield > --- WEAPON ----------- Light Assault Rifle > --- INVENTORY -------- Ion Engine Light Treads Small Storage Unit Sensor Array Seismic Detector [Rating: 8] Favorites ----------- Power Ion Engine Engine Ion Engine Propulsion Light Treads Treads Light Treads Wheel Wheel Utility Targeting Computer Device Seismic Detector Storage Medium Storage Unit Processor Targeting Computer Protection Scrap Shield Weapon Medium Laser Energy Gun Medium Laser Ballistic Gun Assault Rifle Launcher Subdweller Shrapnel Launcher Special Weapon Flamer Build | -11 -10 -10 ------- Run | Yrd Mat Sub Slots Evolved . | . . . Power . | . . . Propulsion . | . . . Utility . | . . . Weapon . | . . . Parts Attached 16 | 7 2 7 Power 2 | 1 . 1 Engine 2 | 1 . 1 Core . | . . . Reactor . | . . . Propulsion 4 | 2 . 2 Treads 2 | 2 . . Leg . | . . . Wheel 2 | . . 2 Hover . | . . . Flight . | . . . Utility 5 | 2 2 1 Device 1 | 1 . . Storage 2 | 1 1 . Processor 1 | . 1 . Hackware . | . . . Protection 1 | . . 1 Artifact . | . . . Weapon 5 | 2 . 3 Energy Gun 1 | 1 . . Energy Cannon . | . . . Ballistic Gun 2 | 1 . 1 Ballistic Cannon . | . . . Launcher 1 | . . 1 Special Weapon 1 | . . 1 Impact Weapon . | . . . Slashing Weapon . | . . . Piercing Weapon . | . . . Special Melee Weapon . | . . . Unidentified Prototypes . | . . . Parts Lost 9 | . . 9 Power 1 | . . 1 Propulsion 2 | . . 2 Utility 1 | . . 1 Weapon 5 | . . 5 Highest Loss Streak 6 | . . 6 To Critical Strikes . | . . . Average Slot Usage (%) 90 | . 100 83 Engine 13 | . 14 13 Treads 15 | . 28 5 Wheel 11 | . . 20 Device 1 | . 3 . Storage 13 | . 14 12 Processor 11 | . 10 12 Energy Gun 7 | . 14 2 Ballistic Gun 13 | . 14 13 Naked Turns . | . . . Heaviest Build 24 | 15 19 24 Greatest Support 40 | 40 40 40 Greatest Overweight (x) 2 | 1 . 2 Average Overweight (x) . | . . . Largest Inventory Capacity 10 | 8 10 10 Average Capacity 8 | 7 8 9 Most Carried 7 | 5 7 7 Average Carried 5 | 3 5 5 Final Capacity 10 | 8 10 5 Final Carried 7 | 4 7 5 Class Distribution -------------------- 100% | Mutant Dominant Class ---------------- Mutant | -10/Materials Mutant | -10/Subcaves Resources | -11 -10 -10 ----------- Run | Yrd Mat Sub Matter Collected 387 | 208 109 70 Remotely . | . . . Salvage Created 229 | 30 109 90 Parts 16 | 4 8 4 Haulers Intercepted 1 | . 1 . Recyclers Shooed . | . . . Parts Field Recycled . | . . . Retrieved Matter . | . . . Parts Self-Destructed 4 | . . 4 Prevented . | . . . Kills | -11 -10 -10 ------- Run | Yrd Mat Sub Combat Hostiles Destroyed 5 | . 3 2 Guns 5 | . 3 2 Classes Destroyed 5 | 1 3 1 Tunneler 1 | 1 . . Hauler 1 | . 1 . Watcher 1 | . 1 . Swarmer 3 | . 3 . Subdweller 2 | . . 2 Best Kill Streak 2 | 1 2 1 Combat Bots Only 2 | . 2 1 Max Kills in Single Turn 1 | 1 1 1 Gunslinging . | . . . Exploded . | . . . Melee . | . . . Uniques/NPCs Destroyed . | . . . Combat | -11 -10 -10 -------- Run | Yrd Mat Sub Hostile Shots Fired 75 | . 22 53 Missed 12 | . 1 11 Damage Taken 1152 | . 165 987 Core 260 | . 7 253 Absorbed by Shields . | . . . Core Remaining (%) 100 | 100 . . Volleys Fired 37 | 1 17 19 Largest 2 | 2 2 2 Hottest 120 | 70 70 120 Shots Fired 71 | 2 34 35 Gun 70 | 2 34 34 Cannon . | . . . Launcher . | . . . Special 1 | . . 1 Kinetic 37 | 1 17 19 Thermal 34 | 1 17 16 Explosive . | . . . Electromagnetic . | . . . Robot Hit Streak 34 | 1 4 34 Robot Miss Streak 5 | 1 5 1 Penetration Max . | . . . Secondary Targets 1 | . 1 . Max Gunslinging Chain 1 | . 1 . Shots Hit Robots 52 | 1 17 34 Core Hits 13 | 1 6 6 Critical Kills . | . . . Critical Parts Destroyed 1 | . 1 . Critical Strikes 3 | . 1 2 Burn 2 | . . 2 Destroy 1 | . 1 . Melee Attacks . | . . . Impact . | . . . Slashing . | . . . Piercing . | . . . Sneak Attacks . | . . . Combat Hostiles . | . . . Follow-up Attacks . | . . . Damage Inflicted 615 | 11 237 367 Guns 605 | 11 237 357 Cannons . | . . . Explosions . | . . . Melee . | . . . Ramming . | . . . Kinetic 322 | 11 127 184 Thermal 293 | . 110 183 Explosive . | . . . Electromagnetic . | . . . Impact . | . . . Slashing . | . . . Piercing . | . . . Highest Corruption . | . . . Average Corruption . | . . . Corruption Purged . | . . . Corruption Blocked . | . . . Overload Shots . | . . . Overflow Damage . | . . . Projectiles . | . . . Explosions . | . . . Melee . | . . . Knockbacks . | . . . Impact . | . . . Kinetic . | . . . Secondary . | . . . Self-Inflicted Damage . | . . . Shots . | . . . Rammed . | . . . Targets Rammed . | . . . Kicked . | . . . Crushed . | . . . Highest Temperature 239 | 9 72 239 Average Temperature 30 | 6 25 49 Received Heat Transfer 576 | . . 576 Siege Activations . | . . . Robots Corrupted . | . . . Combat Hostiles . | . . . Parts Fried . | . . . Impact Corruptions . | . . . Robots Melted . | . . . Combat Hostiles . | . . . Parts Melted 1 | . . 1 Heat Transferred 1079 | . 333 746 Parts Sabotaged . | . . . Parts Stolen . | . . . Parts Stripped . | . . . Power Chain Reactions . | . . . Alert | -11 -10 -10 ------- Run | Yrd Mat Sub Peak Influence 168 | 5 168 . Initial 3 | . 3 . Average 80 | 1 104 . Maximum Alert Level . | . . . Low Security (%) 100 | 100 100 . Level 1 . | . . . Level 2 . | . . . Level 3 . | . . . Level 4 . | . . . Level 5 . | . . . High Security . | . . . Max Security . | . . . Squads Dispatched . | . . . Investigation . | . . . Extermination . | . . . Reinforcement . | . . . Assault . | . . . Garrison . | . . . Intercept . | . . . Searches Triggered . | . . . Construction Impeded . | . . . Haulers Reinforced . | . . . Active Scanning Responses . | . . . Cargo Convoy Interrupts . | . . . Stealth | -11 -10 -10 --------- Run | Yrd Mat Sub Distress Signals . | . . . Communications Jammed . | . . . Distress Signals . | . . . Times Spotted 16 | . 11 5 Peak Tracking Total 3 | . 3 3 Tactical Retreats 1 | . 1 . Traps | -11 -10 -10 ------- Run | Yrd Mat Sub Traps Triggered . | . . . Indirectly . | . . . Trap Hack Attempts . | . . . Triggered . | . . . Disarmed . | . . . Reprogrammed . | . . . Reused . | . . . Traps Extracted . | . . . Installed . | . . . Triggered . | . . . Machines | -11 -10 -10 ---------- Run | Yrd Mat Sub Machines Disabled . | . . . Max in Single Turn . | . . . Machines Repaired . | . . . Machines Dismantled . | . . . Machines Sabotaged . | . . . Overloaded Fab Kills . | . . . Hacking | -11 -10 -10 --------- Run | Yrd Mat Sub Machines Accessed 3 | . 3 . Terminals 3 | . 3 . Fabricators . | . . . Repair Stations . | . . . Recycling Units . | . . . Scanalyzers . | . . . Garrison Access . | . . . Total Hacks 11 | . 11 . Successful 3 | . 3 . Failed 8 | . 8 . Catastrophic 2 | . 2 . Database Lockouts . | . . . Manual 7 | . 7 . Terminals 11 | . 11 . Fabricators . | . . . Repair Stations . | . . . Recycling Units . | . . . Scanalyzers . | . . . Garrison Access . | . . . Terminal Hacks 2 | . 2 . Robot Analysis 1 | . 1 . Terminal Index 1 | . 1 . Fabricator Hacks . | . . . Repair Station Hacks . | . . . Recycling Unit Hacks . | . . . Scanalyzer . | . . . Garrison Access Hacks . | . . . Unauthorized Hacks 1 | . 1 . Terminals 1 | . 1 . Botnet 1 | . 1 . Fabricators . | . . . Repair Stations . | . . . Recycling Units . | . . . Scanalyzers . | . . . Garrison Access . | . . . Data Cores Recovered . | . . . Used . | . . . Hacking Detections 2 | . 2 . Full Trace Events . | . . . Feedback Events . | . . . Feedback Blocked . | . . . Robot Schematics Acquired . | . . . Robots Built . | . . . Authchips . | . . . Time . | . . . Total Robot Build Rating . | . . . Part Schematics Acquired . | . . . Parts Built . | . . . Authchips . | . . . Time . | . . . Total Part Build Rating . | . . . Parts Repaired . | . . . Time . | . . . Parts Recycled . | . . . Recycled Matter . | . . . Retrieved Matter . | . . . Retrieved Components . | . . . Parts Scanalyzed . | . . . Part Schematics Acquired . | . . . Parts Damaged . | . . . Bothacking | -11 -10 -10 ------------ Run | Yrd Mat Sub Used RIF Installer . | . . . Robots Hacked . | . . . Non-combat . | . . . Combat . | . . . Robot Hacks Applied . | . . . Relay Couplers Released . | . . . Fabnet Peak Effective % . | . . . Robots Rewired . | . . . Allies Hacked . | . . . Hacks Repelled . | . . . Allies | -11 -10 -10 -------- Run | Yrd Mat Sub Total Allies . | . . . Largest Group . | . . . Highest-Rated Group . | . . . Highest-Rated Ally . | . . . Total Orders . | . . . Ally Attacks . | . . . Total Damage . | . . . Kills . | . . . Allies Corrupted . | . . . Allies Melted . | . . . Intel | -11 -10 -10 ------- Run | Yrd Mat Sub Robot Analysis Total 1 | . 1 . Derelict Logs Recovered . | . . . Drone Launches . | . . . Drone Recoveries . | . . . Exploration | -11 -10 -10 ------------- Run | Yrd Mat Sub Turns Passed 998 | 121 391 486 Spaces Moved 742 | 66 209 467 Core 5 | 5 . . Treads 303 | 61 209 33 Legs . | . . . Wheels 434 | . . 434 Hover . | . . . Flight . | . . . Fastest Speed 50 | 50 160 80 Average Speed 113 | 154 160 86 Slowest Speed 160 | 160 160 160 Overloaded Moves . | . . . Propulsion Burnouts . | . . . Robots Hopped . | . . . Cave-ins Triggered . | . . . Exploration Rate (%) 18 | 5 34 17 Regions Visited 2 Branch Regions 1 Pre-discovered Areas 1 | . . 1 Known Exits Taken . | . . . Unknown Exits Taken 2 | 1 1 . Scrap Searched . | . . . Spaces Dug . | . . . Terrain Destroyed . | . . . Melee . | . . . Projectile . | . . . AOE . | . . . Terrain Rammed . | . . . Walls Destroyed . | . . . Machines Disabled . | . . . Actions | -11 -10 -10 --------- Run | Yrd Mat Sub Total 826 | 80 231 515 Wait 23 | 1 2 20 Move 740 | 65 208 467 Hop . | . . . Pick Up 7 | 5 2 . Fast Attach 11 | 7 . 4 Attach 2 | . . 2 Detach . | . . . Swap 3 | . 2 1 Drop 3 | 1 . 2 Fire 37 | 1 17 19 Melee . | . . . Ram . | . . . Kick . | . . . Crush . | . . . Escape Stasis . | . . . Rewire . | . . . Trap . | . . . Miscellaneous . | . . . Route ------- -11/Scrapyard -10/Materials (discovered 2 exits: [*Min] / [*Sub]) -10/Subcaves (discovered 1 exit: [*Mat]) History --------- Turn | Location | Event 12 | -11/Scrapyard | Discovered new exit (range 15) 122 | -11/Scrapyard | Entered Materials 309 | -10/Materials | Build established: Mutant 352 | -10/Materials | Discovered new exit (range 13) 499 | -10/Materials | Discovered new exit (range 9) 513 | -10/Materials | Entered Subcaves 586 | -10/Subcaves | Core integrity fell below 50% 630 | -10/Subcaves | Lost 3 parts (1n2w) 754 | -10/Subcaves | Learned location of Zion (-7) 754 | -10/Subcaves | Met a Zionite searching for "candidates" 947 | -10/Subcaves | Shifting Twisted Machinery released Scrap Shield 949 | -10/Subcaves | Shifting Twisted Machinery released Sub. Machine Gun 953 | -10/Subcaves | A Subdweller sparked back to life 953 | -10/Subcaves | A Subdweller sparked back to life 953 | -10/Subcaves | A Subdweller sparked back to life 962 | -10/Subcaves | Discovered new exit (range 9) 989 | -10/Subcaves | Core integrity fell below 20% 999 | -10/Subcaves | Destroyed by JP-YUF(R) with Subdweller Beam Cannon Last Messages --------------- Scrap Shield falls loose from the Twisted Machinery. Sub. Machine Gun falls loose from the Twisted Machinery. 00953_ 1T-ZQA(R) creaks and sparks as it begins to move. 00953_ JP-YUF(R) creaks and sparks as it begins to move. 00953_ KB-CKY(R) creaks and sparks as it begins to move. 00956_ Dropped Med. Storage Unit. 00956_ Discarded Targeting Computer. 00957_ Acquired Scrap Shield. 00959_ Wheel destroyed. 00962_ EXIT=FOUND 00963_ Critical hit (Meltdown: +270). 00966_ KB-CKY(R) destroyed. 00968_ Scrap Shield destroyed. 00969_ Acquired Flamer. 00982_ Lgt. Assault Rifle destroyed. 00982_ Flamer destroyed. 00988_ Ion Engine destroyed. 00994_ Acquired Sub. Shrapnel Launcher. 00996_ Acquired Sub. Power Source. 00999_ Sub. Shrapnel Launcher destroyed. Map ----- +----------------------------------------------------+ | ##??# ####???????????????????????????????? | | #??# ##??????????????????????????????????? | | ##### ##??????????????????????????????????? | | ## #??????????????????????????????????? | | ###""" #??????????????????????????????????? | | #?# " #####??????????????????????????????? | | ## ### " #??????????????????????????????? | | ##""" """" ##??????????????????????????????? | | """" #???????????????????????????????? | | """ """" ##??????????????????????????????? | | "###"## """" #??????????????????????????????? | | ##?####""""""" #??????????????????????????????? | | ##?????##"" #??????????????????????????????? | | ##?????###"" #??????????????????????????????? | | #?????##"""" #??????????????????????????????? | | ##???## ## #??????????????????????????????? | | #???# ### #??????????????????????????????? | | #??## ### ###??????????####??????????????? | | #### #????####### ##?????????????? | | ## ###### #?????????????? | | # ### # # ##????????????? | | ### ! #????????????? | | "" ##????????????? | | ### ## " ##?????????????? | | #### #### < "###??????????????? | | ##?# ### ###?# <@ ! #####?????????????? | | ??# #####?# ###?# < &%& R[#"#???#?????????? | | ??# ##????## #?# !#= R" ##?? ##????????? | | ??####????## #?####### ##" ## #????????? | | ????####?## ## #???????# ### #?????????? | | ???## ### ## ##???????## ### < #?????????? | | ???# ##### ##?????????#" " #?????????? | | ???# ##???###??????????# """"""""#?????????? | | ???## ##?????????????????######""""""#????????? | | ????######???????????????????????########????????? | | ?????????????????????????????????????????????????? | | ?????????????????????????????????????????????????? | | ?????????????????????????????????????????????????? | | ?????????????????????????????????????????????????? | | ?????????????????????????????????????????????????? | | ?????????????????????????????????????????????????? | | ?????????????????????????????????????????????????? | | ?????????????????????????????????????????????????? | | ?????????????????????????????????????????????????? | | ?????????????????????????????????????????????????? | | ?????????????????????????????????????????????????? | | ?????????????????????????????????????????????????? | | ?????????????????????????????????????????????????? | | ?????????????????????????????????????????????????? | | | +----------------------------------------------------+ Best States ------------- Heat Dissipation 25 Energy Generation 10 Energy Capacity 250 Matter Stores 300 Matter Capacity 300 Sight Range 16 Terrain Scan Density 10 Armor Coverage 800 Evasion (%) 44 Targeting Accuracy 5 Recoil Reduction 2 Item Schematics ----------------- None Robot Schematics ------------------ None Fabricated ------------ Nothing Alien Tech Used ----------------- None Achievements -------------- None Challenges ------------ None Game ------ Seed AlphaSuperchargedStabilizer Manual? 0 Play Time 00:10:44 Cumulative 52.2 hours Start 2024.07.31 @ 13:46:02 End 2024.07.31 @ 13:56:03 Sessions 1 Manual Loads 0 Difficulty Rogue Special Mode None Game No. 76 Rogue 76 Adventurer 0 Explorer 0 Win Type - Total 0 Types 0/0/0/0/0/0/0/0/0 Lore% 27 Gallery% 33 Achievement% 35 Wizard Run 0 Options --------- Layout 0 ASCII 0 Keyboard 0 Movement Arrows Keybinds 0 Fullscreen 2 Font 18/SmallcapsGlow Map View 76x50 Zoom Use 0% Tactical HUD 1 Map Filters NONE Filters NONE Steam 1 RUN: ae37a3ea-372d-4f66-95f8-a6b1467d7b06